[Event "*** MasterClass Titled Tuesday Blitz"]
[Site "Chess.com"]
[Date "2017.10.03"]
[Round "10"]
[White "nubair1198"]
[Black "Blitzstream"]
[Result "0-1"]
[WhiteElo "2437"]
[BlackElo "2484"]
[TimeControl "180+2"]
[EndTime "15:17:30 PDT"]
[Termination "Blitzstream won by resignation"]

1. d4 {[%clk 0:03:01.9]} 1... e6 {[%clk 0:02:59.4]} 2. c4 {[%clk 0:03:01.3]}
2... g5 {[%clk 0:03:00.4]} 3. Nc3 {[%clk 0:03:01.1]} 3... Bg7 {[%clk 0:03:01.6]}
4. h3 {[%clk 0:02:50.1]} 4... h5 {[%clk 0:03:01.7]} 5. e4 {[%clk 0:02:49.3]}
5... c5 {[%clk 0:03:01.5]} 6. d5 {[%clk 0:02:50.2]} 6... a6 {[%clk 0:03:01.8]}
7. Be2 {[%clk 0:02:50.8]} 7... g4 {[%clk 0:02:44.6]} 8. hxg4 {[%clk 0:02:48.2]}
8... hxg4 {[%clk 0:02:46.5]} 9. Rxh8 {[%clk 0:02:47.5]} 9... Bxh8 {[%clk
0:02:48.4]} 10. Bxg4 {[%clk 0:02:48.8]} 10... Qh4 {[%clk 0:02:49]} 11. Qf3
{[%clk 0:02:40.6]} 11... b5 {[%clk 0:02:10.4]} 12. Be3 {[%clk 0:02:27.5]} 12...
b4 {[%clk 0:01:49.2]} 13. Na4 {[%clk 0:02:23.4]} 13... Nf6 {[%clk 0:01:44.1]}
14. Bh3 {[%clk 0:02:24.3]} 14... Nxe4 {[%clk 0:01:40.8]} 15. dxe6 {[%clk
0:01:59.8]} 15... dxe6 {[%clk 0:01:30.6]} 16. Nxc5 {[%clk 0:01:56.2]} 16... Nxc5
{[%clk 0:01:09.8]} 17. Qxa8 {[%clk 0:01:55.4]} 17... Nd3+ {[%clk 0:00:52.5]} 18.
Kf1 {[%clk 0:01:51.2]} 18... Qxc4 {[%clk 0:00:48.9]} 19. Ne2 {[%clk 0:01:52.2]}
19... Nd7 {[%clk 0:00:39.5]} 20. Rd1 {[%clk 0:01:45.3]} 20... Nxb2 {[%clk
0:00:29.6]} 21. Rc1 {[%clk 0:01:45.2]} 21... Bc3 {[%clk 0:00:29.8]} 22. Bd4
{[%clk 0:01:18.8]} 22... Nd3 {[%clk 0:00:25.4]} 23. Rc2 {[%clk 0:01:11.3]} 23...
Nf4 {[%clk 0:00:16]} 24. Bxc3 {[%clk 0:01:12]} 24... Nxe2 {[%clk 0:00:11.9]} 25.
Rxe2 {[%clk 0:00:52.4]} 25... bxc3 {[%clk 0:00:12.9]} 26. Bf5 {[%clk 0:00:53.7]}
26... a5 {[%clk 0:00:04.5]} 27. Bd3 {[%clk 0:00:52.2]} 27... Qxd3 {[%clk
0:00:03]} 28. Qxc8+ {[%clk 0:00:50.1]} 28... Ke7 {[%clk 0:00:04.9]} 29. g3
{[%clk 0:00:40.2]} 29... Qd1+ {[%clk 0:00:05.5]} 30. Re1 {[%clk 0:00:41.3]}
30... Qd2 {[%clk 0:00:06.7]} 31. Qc4 {[%clk 0:00:39.7]} 31... Kf6 {[%clk
0:00:04.1]} 32. Qe2 {[%clk 0:00:36.7]} 32... Qd4 {[%clk 0:00:02.9]} 33. Qe3
{[%clk 0:00:37]} 33... Qc4+ {[%clk 0:00:03.1]} 34. Qe2 {[%clk 0:00:37.1]} 34...
Qc6 {[%clk 0:00:04.7]} 35. Qd3 {[%clk 0:00:33.4]} 35... Ne5 {[%clk 0:00:05.2]}
36. Qe3 {[%clk 0:00:29.1]} 36... Qc4+ {[%clk 0:00:05.8]} 37. Kg1 {[%clk
0:00:29.5]} 37... c2 {[%clk 0:00:07]} 38. Qh6+ {[%clk 0:00:25.8]} 38... Ke7
{[%clk 0:00:06.5]} 39. Qg5+ {[%clk 0:00:26.9]} 39... f6 {[%clk 0:00:07.7]} 40.
Qg7+ {[%clk 0:00:25.7]} 40... Kd6 {[%clk 0:00:07.6]} 41. Qxf6 {[%clk 0:00:27.2]}
41... Nd3 {[%clk 0:00:08.3]} 42. Qd8+ {[%clk 0:00:26.2]} 42... Kc5 {[%clk
0:00:07.3]} 43. Qxa5+ {[%clk 0:00:26.5]} 43... Kd4 {[%clk 0:00:08.3]} 44. Qb6+
{[%clk 0:00:21.6]} 44... Kc3 {[%clk 0:00:08.7]} 45. Qa5+ {[%clk 0:00:14.7]}
45... Kd4 {[%clk 0:00:08.9]} 46. Qd8+ {[%clk 0:00:11.6]} 46... Kc3 {[%clk
0:00:07.5]} 47. Qa5+ {[%clk 0:00:12]} 47... Kd4 {[%clk 0:00:08.3]} 48. Qd8+
{[%clk 0:00:12.9]} 48... Kc3 {[%clk 0:00:08.9]} 49. Qa5+ {[%clk 0:00:13.8]}
49... Kd4 {[%clk 0:00:06.8]} 50. Qd8+ {[%clk 0:00:11.8]} 50... Qd5 {[%clk
0:00:04.4]} 51. Qb6+ {[%clk 0:00:11]} 51... Qc5 {[%clk 0:00:05.7]} 52. Qd8+
{[%clk 0:00:08.4]} 52... Kc3 {[%clk 0:00:07]} 53. Qf6+ {[%clk 0:00:09.5]} 53...
e5 {[%clk 0:00:08.2]} 54. g4 {[%clk 0:00:09]} 54... Nxe1 {[%clk 0:00:08.3]} 55.
g5 {[%clk 0:00:07.6]} 55... c1=Q {[%clk 0:00:09.2]} 56. g6 {[%clk 0:00:09.5]}
56... Nf3+ {[%clk 0:00:10.2]} 57. Kg2 {[%clk 0:00:11]} 57... Qg5+ {[%clk
0:00:11.1]} 58. Qxg5 {[%clk 0:00:11.4]} 58... Nxg5 {[%clk 0:00:13]} 59. g7
{[%clk 0:00:13.3]} 59... Qc8 {[%clk 0:00:14.2]} 60. g8=Q {[%clk 0:00:14.8]}
60... Qxg8 {[%clk 0:00:15.3]} 61. f4 {[%clk 0:00:15.7]} 61... exf4 {[%clk
0:00:16.1]} 62. a4 {[%clk 0:00:17.6]} 62... Qd5+ {[%clk 0:00:17.2]} 63. Kf2
{[%clk 0:00:18.5]} 63... Qf3+ {[%clk 0:00:18.4]} 64. Ke1 {[%clk 0:00:19.3]}
64... Qg2 {[%clk 0:00:19.4]} 65. a5 {[%clk 0:00:20.1]} 65... Nf3+ {[%clk
0:00:21]} 66. Kd1 {[%clk 0:00:21.4]} 66... Qa2 {[%clk 0:00:20.6]} 0-1

[Event "*** MasterClass Titled Tuesday Blitz"]
[Site "Chess.com"]
[Date "2017.10.03"]
[Round "10"]
[White "MisaPap"]
[Black "severomorskij"]
[Result "1/2-1/2"]
[WhiteElo "2583"]
[BlackElo "2659"]
[TimeControl "180+2"]
[EndTime "15:18:53 PDT"]
[Termination "Game drawn by agreement"]

1. e4 {[%clk 0:03:01.7]} 1... c5 {[%clk 0:03:00.2]} 2. c3 {[%clk 0:03:00.4]}
2... d5 {[%clk 0:02:56.5]} 3. exd5 {[%clk 0:02:57.8]} 3... Qxd5 {[%clk
0:02:57.4]} 4. d4 {[%clk 0:02:59.4]} 4... Nc6 {[%clk 0:02:57.8]} 5. Nf3 {[%clk
0:02:59.9]} 5... Bf5 {[%clk 0:02:57.3]} 6. Be3 {[%clk 0:02:54.4]} 6... Nf6
{[%clk 0:02:46.2]} 7. Na3 {[%clk 0:02:54.1]} 7... e6 {[%clk 0:02:41.6]} 8. dxc5
{[%clk 0:02:41.6]} 8... O-O-O {[%clk 0:02:34.2]} 9. Qxd5 {[%clk 0:02:40]} 9...
Nxd5 {[%clk 0:02:33]} 10. Nc4 {[%clk 0:02:18.6]} 10... Nxe3 {[%clk 0:02:31.8]}
11. fxe3 {[%clk 0:02:19.2]} 11... Bxc5 {[%clk 0:02:31.6]} 12. Nd4 {[%clk
0:02:20]} 12... Be4 {[%clk 0:01:58.6]} 13. Nd2 {[%clk 0:01:40.4]} 13... Bg6
{[%clk 0:01:54.8]} 14. Bb5 {[%clk 0:01:33.2]} 14... e5 {[%clk 0:01:39.7]} 15.
Nxc6 {[%clk 0:01:30.8]} 15... bxc6 {[%clk 0:01:40.4]} 16. Ba6+ {[%clk
0:01:21.6]} 16... Kc7 {[%clk 0:01:40.6]} 17. Nc4 {[%clk 0:01:12]} 17... Bd3
{[%clk 0:01:30.2]} 18. O-O-O {[%clk 0:00:42.3]} 18... Bxc4 {[%clk 0:01:19]} 19.
Bxc4 {[%clk 0:00:42.5]} 19... Bxe3+ {[%clk 0:01:19.7]} 20. Kc2 {[%clk
0:00:43.7]} 20... f5 {[%clk 0:01:20.5]} 21. Be6 {[%clk 0:00:41.4]} 21... g6
{[%clk 0:01:18.6]} 22. h4 {[%clk 0:00:37]} 22... e4 {[%clk 0:01:15.6]} 23. h5
{[%clk 0:00:33.6]} 23... Rhf8 {[%clk 0:00:48.8]} 24. hxg6 {[%clk 0:00:33.8]}
24... hxg6 {[%clk 0:00:49.1]} 25. Rh7+ {[%clk 0:00:31.7]} 25... Kb6 {[%clk
0:00:49.7]} 26. Rg7 {[%clk 0:00:25.3]} 26... Rxd1 {[%clk 0:00:40.1]} 27. Kxd1
{[%clk 0:00:25.7]} 27... g5 {[%clk 0:00:33.7]} 28. Ke2 {[%clk 0:00:22.5]} 28...
Bc1 {[%clk 0:00:33.9]} 29. b3 {[%clk 0:00:14]} 29... f4 {[%clk 0:00:33.7]} 30.
Bg4 {[%clk 0:00:10.7]} 30... Rd8 {[%clk 0:00:32]} 31. Rd7 {[%clk 0:00:10.8]}
31... Rxd7 {[%clk 0:00:24.5]} 32. Bxd7 {[%clk 0:00:11]} 32... Bb2 {[%clk
0:00:24.4]} 33. Bf5 {[%clk 0:00:11.4]} 33... e3 {[%clk 0:00:23.5]} 34. c4 {[%clk
0:00:12.3]} 34... Kc5 {[%clk 0:00:21.7]} 35. Bd7 {[%clk 0:00:12.6]} 35... Kd6
{[%clk 0:00:21.8]} 36. Bg4 {[%clk 0:00:12.9]} 36... Ke5 {[%clk 0:00:18.5]} 37.
Kd3 {[%clk 0:00:14]} 37... c5 {[%clk 0:00:17.9]} 38. Bh3 {[%clk 0:00:11.9]}
38... Ba3 {[%clk 0:00:16.2]} 39. Bg4 {[%clk 0:00:12.9]} 39... a5 {[%clk
0:00:17.1]} 40. Bh3 {[%clk 0:00:13.8]} 40... Bb4 {[%clk 0:00:17.9]} 41. Bg4
{[%clk 0:00:14.9]} 41... Be1 {[%clk 0:00:17.1]} 42. Bh3 {[%clk 0:00:16]} 42...
Bd2 {[%clk 0:00:16.6]} 43. Bg4 {[%clk 0:00:17.1]} 43... Bb4 {[%clk 0:00:17.2]}
44. Bh3 {[%clk 0:00:18.1]} 44... Kf6 {[%clk 0:00:14.8]} 45. Bg4 {[%clk
0:00:19.2]} 45... Ke5 {[%clk 0:00:14.9]} 46. Bh3 {[%clk 0:00:19.1]} 46... e2
{[%clk 0:00:07.4]} 47. Kxe2 {[%clk 0:00:19.6]} 47... Kd4 {[%clk 0:00:08.3]} 48.
Bd7 {[%clk 0:00:20.1]} 48... Kc3 {[%clk 0:00:08.8]} 49. Kf3 {[%clk 0:00:21.2]}
49... Kb2 {[%clk 0:00:09.7]} 50. a4 {[%clk 0:00:19.8]} 50... Kxb3 {[%clk
0:00:10]} 51. Bb5 {[%clk 0:00:21.3]} 51... Bd2 {[%clk 0:00:09.3]} 52. Kg4 {[%clk
0:00:21.1]} 52... Kc3 {[%clk 0:00:10]} 53. Kf3 {[%clk 0:00:22.1]} 53... Kd3
{[%clk 0:00:10.6]} 54. Ba6 {[%clk 0:00:23.3]} 54... Kd4 {[%clk 0:00:11.7]} 55.
Bb5 {[%clk 0:00:23.8]} 55... Ke5 {[%clk 0:00:12.2]} 56. Bd7 {[%clk 0:00:24.4]}
56... Bc3 {[%clk 0:00:12.3]} 57. Bg4 {[%clk 0:00:24.1]} 57... Kd4 {[%clk
0:00:12.5]} 58. Be6 {[%clk 0:00:24.6]} 58... Kd3 {[%clk 0:00:13.5]} 59. Bf7
{[%clk 0:00:24.3]} 59... Bf6 {[%clk 0:00:11.7]} 60. Kg4 {[%clk 0:00:25.2]} 60...
Kc3 {[%clk 0:00:11.7]} 61. Kf5 {[%clk 0:00:26.5]} 61... Bd8 {[%clk 0:00:12.3]}
62. Ke4 {[%clk 0:00:26.7]} 62... Kb4 {[%clk 0:00:11.9]} 63. Kd5 {[%clk
0:00:27.6]} 63... Be7 {[%clk 0:00:05.6]} 64. Be8 {[%clk 0:00:25.6]} 64... g4
{[%clk 0:00:06.7]} 65. Ke4 {[%clk 0:00:26.2]} 65... Bd6 {[%clk 0:00:04.7]} 66.
Bb5 {[%clk 0:00:24.6]} 66... Kc3 {[%clk 0:00:05]} 67. Bd7 {[%clk 0:00:22.8]}
67... Kxc4 {[%clk 0:00:05.6]} 68. Bxg4 {[%clk 0:00:23.3]} 68... Kb3 {[%clk
0:00:06.5]} 69. Be6+ {[%clk 0:00:23.3]} 69... Kxa4 {[%clk 0:00:06.6]} 70. Kd5
{[%clk 0:00:24.9]} 70... Bf8 {[%clk 0:00:03.6]} 71. Kc4 {[%clk 0:00:26.4]} 71...
Ka3 {[%clk 0:00:04.9]} 72. Kc3 {[%clk 0:00:27.5]} 72... a4 {[%clk 0:00:05.8]}
73. Bf7 {[%clk 0:00:25.4]} 73... Bg7+ {[%clk 0:00:06.7]} 74. Kc4 {[%clk
0:00:26.6]} 74... Bd4 {[%clk 0:00:07.3]} 75. Kb5 {[%clk 0:00:19.4]} 75... Be3
{[%clk 0:00:05.7]} 76. Be6 {[%clk 0:00:19.9]} 76... Bf2 {[%clk 0:00:06.3]} 77.
Bf7 {[%clk 0:00:20.9]} 77... Bd4 {[%clk 0:00:06.9]} 78. Be6 {[%clk 0:00:21.7]}
78... Kb2 {[%clk 0:00:06.4]} 79. Kxa4 {[%clk 0:00:22.1]} 79... Kc3 {[%clk
0:00:07.4]} 80. Kb5 {[%clk 0:00:23.3]} 80... Kd2 {[%clk 0:00:07.1]} 81. Kc4
{[%clk 0:00:22.7]} 81... Ke3 {[%clk 0:00:08.2]} 82. Bd5 {[%clk 0:00:24.1]} 82...
Kf2 {[%clk 0:00:09]} 83. Bf3 {[%clk 0:00:26]} 83... Ke3 {[%clk 0:00:07.6]}
1/2-1/2